[Event "Titled Tuesday Blitz June 13 Late 2023"]
[White "Sanchez, Robert"]
[Black "rionelG"]
[WhiteFideId "2034360"]
[WhiteElo "1977"]
[BlackElo "2223"]
[Result "0-1"]
[Round "10"]
[TimeControl "180+2"]
[Date "2023.06.13"]
[WhiteClock "0:00:06"]
[BlackClock "0:00:07"]
[Board "111"]

1. e4 {[%clk 0:03:00]}  c5 {[%clk 0:02:47]} 2. Nf3 {[%clk 0:03:00]}  d6 {[%clk 0:02:47]} 3. d4 {[%clk 0:03:01]}  cxd4 {[%clk 0:02:48]} 4. Nxd4 {[%clk 0:03:01]}  Nf6 {[%clk 0:02:48]} 5. Nc3 {[%clk 0:03:02]}  a6 {[%clk 0:02:49]} 6. Be3 {[%clk 0:03:02]}  e5 {[%clk 0:02:48]} 7. Nb3 {[%clk 0:03:03]}  Be7 {[%clk 0:02:48]} 8. f3 {[%clk 0:03:03]}  Be6 {[%clk 0:02:48]} 9. Qd2 {[%clk 0:03:04]}  O-O {[%clk 0:02:48]} 10. O-O-O {[%clk 0:03:05]}  a5 {[%clk 0:02:48]} 11. g4 {[%clk 0:03:05]}  a4 {[%clk 0:02:48]} 12. Na1 {[%clk 0:03:06]}  a3 {[%clk 0:02:48]} 13. b3 {[%clk 0:03:05]}  Ra5 {[%clk 0:02:43]} 14. g5 {[%clk 0:03:05]}  Nh5 {[%clk 0:02:43]} 15. Nd5 {[%clk 0:03:04]}  Bxd5 {[%clk 0:02:41]} 16. exd5 {[%clk 0:03:04]}  Nd7 {[%clk 0:02:38]} 17. Kb1 {[%clk 0:03:04]}  Nf4 {[%clk 0:02:28]} 18. c4 {[%clk 0:02:55]}  Bxg5 {[%clk 0:02:24]} 19. Rg1 {[%clk 0:02:55]}  Bh6 {[%clk 0:02:24]} 20. Bd3 {[%clk 0:02:47]}  Ra8 {[%clk 0:01:57]} 21. Nc2 {[%clk 0:02:46]}  b6 {[%clk 0:01:54]} 22. Nb4 {[%clk 0:02:43]}  Nc5 {[%clk 0:01:54]} 23. Bc2 {[%clk 0:02:34]}  b5 {[%clk 0:01:51]} 24. Nc6 {[%clk 0:02:32]}  Qb6 {[%clk 0:01:50]} 25. b4 {[%clk 0:02:22]}  bxc4 {[%clk 0:01:50]} 26. Ka1 {[%clk 0:02:16]}  Qb5 {[%clk 0:01:40]} 27. Bxh7+ {[%clk 0:02:13]}  Kxh7 {[%clk 0:01:32]} 28. bxc5 {[%clk 0:02:14]}  c3 {[%clk 0:01:13]} 29. Qc2+ {[%clk 0:02:12]}  g6 {[%clk 0:01:12]} 30. Bxf4 {[%clk 0:01:56]}  Qb2+ {[%clk 0:00:58]} 31. Qxb2 {[%clk 0:01:55]}  cxb2+ {[%clk 0:00:56]} 32. Kb1 {[%clk 0:01:54]}  Bxf4 {[%clk 0:00:56]} 33. cxd6 {[%clk 0:01:53]}  Be3 {[%clk 0:00:40]} 34. Rge1 {[%clk 0:01:46]}  Bb6 {[%clk 0:00:37]} 35. Rxe5 {[%clk 0:01:29]}  Bc5 {[%clk 0:00:36]} 36. d7 {[%clk 0:01:27]}  Kg7 {[%clk 0:00:35]} 37. d8=Q {[%clk 0:00:54]}  Raxd8 {[%clk 0:00:34]} 38. Nxd8 {[%clk 0:00:54]}  Rxd8 {[%clk 0:00:35]} 39. d6 {[%clk 0:00:47]}  Rxd6 {[%clk 0:00:34]} 40. Rxd6 {[%clk 0:00:47]}  Bxd6 {[%clk 0:00:34]} 41. Re2 {[%clk 0:00:44]}  Kf6 {[%clk 0:00:33]} 42. Kc2 {[%clk 0:00:44]}  Kf5 {[%clk 0:00:32]} 43. Rd2 {[%clk 0:00:37]}  Be5 {[%clk 0:00:24]} 44. Rd7 {[%clk 0:00:34]}  f6 {[%clk 0:00:23]} 45. Ra7 {[%clk 0:00:34]}  Bd6 {[%clk 0:00:22]} 46. Ra4 {[%clk 0:00:33]}  g5 {[%clk 0:00:20]} 47. h3 {[%clk 0:00:33]}  Kg6 {[%clk 0:00:19]} 48. Rd4 {[%clk 0:00:26]}  Bc5 {[%clk 0:00:19]} 49. Rc4 {[%clk 0:00:25]}  Be7 {[%clk 0:00:20]} 50. Rc7 {[%clk 0:00:25]}  Bd6 {[%clk 0:00:20]} 51. Rd7 {[%clk 0:00:25]}  Be5 {[%clk 0:00:18]} 52. Ra7 {[%clk 0:00:20]}  Bd6 {[%clk 0:00:18]} 53. Ra6 {[%clk 0:00:20]}  Be7 {[%clk 0:00:18]} 54. Re6 {[%clk 0:00:20]}  Kf7 {[%clk 0:00:18]} 55. Re3 {[%clk 0:00:20]}  f5 {[%clk 0:00:17]} 56. Re5 {[%clk 0:00:19]}  Kf6 {[%clk 0:00:17]} 57. Ra5 {[%clk 0:00:18]}  Bd6 {[%clk 0:00:16]} 58. Ra6 {[%clk 0:00:17]}  Ke5 {[%clk 0:00:16]} 59. Rb6 {[%clk 0:00:15]}  Be7 {[%clk 0:00:13]} 60. Kd3 {[%clk 0:00:14]}  Kf4 {[%clk 0:00:13]} 61. Kc2 {[%clk 0:00:12]}  Kxf3 {[%clk 0:00:13]} 62. Re6 {[%clk 0:00:12]}  Bb4 {[%clk 0:00:09]} 63. Re5 {[%clk 0:00:12]}  Kf4 {[%clk 0:00:08]} 64. Rb5 {[%clk 0:00:12]}  Bd6 {[%clk 0:00:08]} 65. Rd5 {[%clk 0:00:12]}  Be7 {[%clk 0:00:08]} 66. Rd7 {[%clk 0:00:12]}  Bf6 {[%clk 0:00:08]} 67. Rd3 {[%clk 0:00:11]}  Be7 {[%clk 0:00:07]} 68. Rd7 {[%clk 0:00:10]}  Bc5 {[%clk 0:00:07]} 69. Rc7 {[%clk 0:00:10]}  Bd6 {[%clk 0:00:06]} 70. Rc6 {[%clk 0:00:10]}  Ke5 {[%clk 0:00:07]} 71. Rc4 {[%clk 0:00:09]}  f4 {[%clk 0:00:07]} 72. Ra4 {[%clk 0:00:08]}  f3 {[%clk 0:00:07]} 73. Ra5+ {[%clk 0:00:06]}  Kf4 {[%clk 0:00:07]} 0-1


[Site "https://www.chess.com"]

[Event "Titled Tuesday Blitz June 13 Late 2023"]
[White "Burke, Paul"]
[Black "Quirke, Jeffrey"]
[WhiteFideId "2605767"]
[BlackFideId "2013029"]
[WhiteElo "1955"]
[BlackElo "2217"]
[Result "0-1"]
[Round "10"]
[TimeControl "180+2"]
[Date "2023.06.13"]
[WhiteClock "0:00:39"]
[BlackClock "0:01:16"]
[Board "115"]

1. e4 {[%clk 0:03:00]}  Nf6 {[%clk 0:02:59]} 2. Bc4 {[%clk 0:02:59]}  d5 {[%clk 0:02:53]} 3. exd5 {[%clk 0:02:58]}  Nxd5 {[%clk 0:02:54]} 4. Nf3 {[%clk 0:02:58]}  c6 {[%clk 0:02:48]} 5. O-O {[%clk 0:02:57]}  Bg4 {[%clk 0:02:48]} 6. Be2 {[%clk 0:02:56]}  e6 {[%clk 0:02:48]} 7. d4 {[%clk 0:02:55]}  Be7 {[%clk 0:02:45]} 8. c4 {[%clk 0:02:55]}  Nf6 {[%clk 0:02:43]} 9. Nc3 {[%clk 0:02:54]}  Nbd7 {[%clk 0:02:41]} 10. Be3 {[%clk 0:02:54]}  O-O {[%clk 0:02:40]} 11. h3 {[%clk 0:02:53]}  Bh5 {[%clk 0:02:39]} 12. Ne5 {[%clk 0:02:53]}  Bxe2 {[%clk 0:02:38]} 13. Nxe2 {[%clk 0:02:52]}  Nxe5 {[%clk 0:02:31]} 14. dxe5 {[%clk 0:02:52]}  Nd7 {[%clk 0:02:32]} 15. f4 {[%clk 0:02:51]}  Bc5 {[%clk 0:02:31]} 16. Bxc5 {[%clk 0:02:47]}  Nxc5 {[%clk 0:02:30]} 17. Qxd8 {[%clk 0:02:47]}  Raxd8 {[%clk 0:02:28]} 18. Rfd1 {[%clk 0:02:46]}  a5 {[%clk 0:02:16]} 19. Nc3 {[%clk 0:02:37]}  Rd3 {[%clk 0:02:04]} 20. Kf2 {[%clk 0:01:59]}  Rfd8 {[%clk 0:01:59]} 21. Ke2 {[%clk 0:01:59]}  Rxd1 {[%clk 0:01:52]} 22. Rxd1 {[%clk 0:01:57]}  Rxd1 {[%clk 0:01:53]} 23. Nxd1 {[%clk 0:01:47]}  f6 {[%clk 0:01:53]} 24. exf6 {[%clk 0:01:46]}  gxf6 {[%clk 0:01:53]} 25. b3 {[%clk 0:01:41]}  Kf7 {[%clk 0:01:52]} 26. Nc3 {[%clk 0:01:36]}  h5 {[%clk 0:01:50]} 27. Ke3 {[%clk 0:01:35]}  f5 {[%clk 0:01:49]} 28. g3 {[%clk 0:01:29]}  Kf6 {[%clk 0:01:48]} 29. Kd4 {[%clk 0:01:27]}  b6 {[%clk 0:01:45]} 30. Ke3 {[%clk 0:01:20]}  e5 {[%clk 0:01:44]} 31. fxe5+ {[%clk 0:01:17]}  Kxe5 {[%clk 0:01:45]} 32. Ne2 {[%clk 0:01:14]}  Ne4 {[%clk 0:01:39]} 33. Kf3 {[%clk 0:01:09]}  Nf6 {[%clk 0:01:29]} 34. Nf4 {[%clk 0:01:05]}  Kd4 {[%clk 0:01:27]} 35. Ne6+ {[%clk 0:00:59]}  Kc3 {[%clk 0:01:26]} 36. Nd8 {[%clk 0:00:59]}  c5 {[%clk 0:01:21]} 37. Nf7 {[%clk 0:00:46]}  Kb2 {[%clk 0:01:21]} 38. Nd6 {[%clk 0:00:46]}  Kxa2 {[%clk 0:01:21]} 39. Nxf5 {[%clk 0:00:46]}  Kxb3 {[%clk 0:01:22]} 40. Ne3 {[%clk 0:00:44]}  a4 {[%clk 0:01:22]} 41. g4 {[%clk 0:00:43]}  hxg4+ {[%clk 0:01:21]} 42. hxg4 {[%clk 0:00:39]}  a3 {[%clk 0:01:16]} 0-1


[Site "https://www.chess.com"]

[Event "Titled Tuesday Blitz June 13 Late 2023"]
[White "Vargas, Mauricio"]
[Black "Celestino, Rafael Teixeira"]
[WhiteFideId "4404572"]
[BlackFideId "2108925"]
[WhiteElo "1986"]
[BlackElo "2245"]
[Result "0-1"]
[Round "10"]
[TimeControl "180+2"]
[Date "2023.06.13"]
[WhiteClock "0:00:02"]
[BlackClock "0:00:10"]
[Board "117"]

1. e4 {[%clk 0:02:59]}  e5 {[%clk 0:02:51]} 2. g3 {[%clk 0:02:50]}  d5 {[%clk 0:02:51]} 3. exd5 {[%clk 0:02:49]}  Nf6 {[%clk 0:02:52]} 4. Bg2 {[%clk 0:02:48]}  Bc5 {[%clk 0:02:52]} 5. c4 {[%clk 0:02:44]}  O-O {[%clk 0:02:50]} 6. Nc3 {[%clk 0:02:43]}  c6 {[%clk 0:02:50]} 7. dxc6 {[%clk 0:02:37]}  Nxc6 {[%clk 0:02:51]} 8. d3 {[%clk 0:02:34]}  Bg4 {[%clk 0:02:47]} 9. Qd2 {[%clk 0:02:25]}  Nb4 {[%clk 0:02:42]} 10. Bf1 {[%clk 0:01:27]}  e4 {[%clk 0:02:09]} 11. Nxe4 {[%clk 0:01:25]}  Nxe4 {[%clk 0:02:03]} 12. dxe4 {[%clk 0:01:23]}  Re8 {[%clk 0:02:04]} 13. f3 {[%clk 0:01:21]}  Qxd2+ {[%clk 0:01:18]} 14. Kxd2 {[%clk 0:01:02]}  Rad8+ {[%clk 0:01:17]} 15. Kc3 {[%clk 0:00:46]}  Rd1 {[%clk 0:01:12]} 16. Be2 {[%clk 0:00:23]}  Re1 {[%clk 0:00:59]} 17. fxg4 {[%clk 0:00:19]}  Rd8 {[%clk 0:00:28]} 18. a3 {[%clk 0:00:16]}  Nc6 {[%clk 0:00:13]} 19. b4 {[%clk 0:00:16]}  Bd4+ {[%clk 0:00:12]} 20. Kb3 {[%clk 0:00:16]}  Bxa1 {[%clk 0:00:13]} 21. Bg5 {[%clk 0:00:13]}  f6 {[%clk 0:00:12]} 22. Bf4 {[%clk 0:00:13]}  Nd4+ {[%clk 0:00:12]} 23. Ka2 {[%clk 0:00:10]}  Nxe2 {[%clk 0:00:13]} 24. Nxe2 {[%clk 0:00:09]}  Rxh1 {[%clk 0:00:13]} 25. Bc7 {[%clk 0:00:06]}  Rd2+ {[%clk 0:00:12]} 26. Kb3 {[%clk 0:00:05]}  Rxe2 {[%clk 0:00:13]} 27. Bf4 {[%clk 0:00:03]}  Bd4 {[%clk 0:00:13]} 28. g5 {[%clk 0:00:03]}  a6 {[%clk 0:00:12]} 29. gxf6 {[%clk 0:00:02]}  b5 {[%clk 0:00:12]} 30. fxg7 {[%clk 0:00:02]}  Rb1# {[%clk 0:00:10]} 0-1


[Site "https://www.chess.com"]

[Event "Titled Tuesday Blitz June 13 Late 2023"]
[White "Paravyan, David"]
[Black "Duda, Jan-Krzysztof"]
[WhiteFideId "4194985"]
[BlackFideId "1170546"]
[WhiteElo "2563"]
[BlackElo "2783"]
[Result "1/2-1/2"]
[Round "11"]
[TimeControl "180+2"]
[Date "2023.06.13"]
[WhiteClock "0:00:04"]
[BlackClock "0:00:02"]
[Board "1"]

1. e4 {[%clk 0:03:00]}  e5 {[%clk 0:03:00]} 2. Nf3 {[%clk 0:03:00]}  Nc6 {[%clk 0:03:01]} 3. Bb5 {[%clk 0:03:00]}  Nf6 {[%clk 0:03:01]} 4. O-O {[%clk 0:03:00]}  Nxe4 {[%clk 0:03:01]} 5. Re1 {[%clk 0:03:00]}  Nd6 {[%clk 0:03:02]} 6. Nxe5 {[%clk 0:03:01]}  Be7 {[%clk 0:03:02]} 7. Bf1 {[%clk 0:03:02]}  Nxe5 {[%clk 0:03:02]} 8. Rxe5 {[%clk 0:03:03]}  O-O {[%clk 0:03:02]} 9. d4 {[%clk 0:03:03]}  Bf6 {[%clk 0:03:02]} 10. Re1 {[%clk 0:03:04]}  Re8 {[%clk 0:03:02]} 11. c3 {[%clk 0:03:04]}  Rxe1 {[%clk 0:03:00]} 12. Qxe1 {[%clk 0:03:05]}  Ne8 {[%clk 0:03:00]} 13. Bf4 {[%clk 0:03:05]}  d5 {[%clk 0:03:00]} 14. Nd2 {[%clk 0:03:06]}  c6 {[%clk 0:02:50]} 15. Qe2 {[%clk 0:03:06]}  g6 {[%clk 0:02:43]} 16. a4 {[%clk 0:02:56]}  a5 {[%clk 0:02:41]} 17. Re1 {[%clk 0:02:55]}  Ng7 {[%clk 0:02:41]} 18. h3 {[%clk 0:02:55]}  Bf5 {[%clk 0:02:26]} 19. Qd1 {[%clk 0:01:45]}  Qb6 {[%clk 0:02:05]} 20. g4 {[%clk 0:01:34]}  Bd7 {[%clk 0:02:01]} 21. Qb3 {[%clk 0:01:27]}  Qxb3 {[%clk 0:01:59]} 22. Nxb3 {[%clk 0:01:28]}  Ne6 {[%clk 0:01:56]} 23. Bd6 {[%clk 0:01:19]}  Bg5 {[%clk 0:01:52]} 24. Kg2 {[%clk 0:01:00]}  h5 {[%clk 0:01:37]} 25. gxh5 {[%clk 0:00:51]}  gxh5 {[%clk 0:01:38]} 26. Bd3 {[%clk 0:00:35]}  Kg7 {[%clk 0:01:19]} 27. Nc5 {[%clk 0:00:34]}  Nxc5 {[%clk 0:01:19]} 28. dxc5 {[%clk 0:00:34]}  h4 {[%clk 0:01:12]} 29. f4 {[%clk 0:00:32]}  Bf6 {[%clk 0:01:12]} 30. Kf3 {[%clk 0:00:19]}  Kh6 {[%clk 0:01:05]} 31. f5 {[%clk 0:00:16]}  Rg8 {[%clk 0:01:03]} 32. Bf4+ {[%clk 0:00:13]}  Kh7 {[%clk 0:00:57]} 33. Bh2 {[%clk 0:00:13]}  Rg5 {[%clk 0:00:53]} 34. Rg1 {[%clk 0:00:12]}  Rxg1 {[%clk 0:00:37]} 35. Bxg1 {[%clk 0:00:13]}  Bg5 {[%clk 0:00:37]} 36. Kg4 {[%clk 0:00:08]}  Bc1 {[%clk 0:00:37]} 37. b4 {[%clk 0:00:08]}  Bd2 {[%clk 0:00:28]} 38. bxa5 {[%clk 0:00:08]}  Bxc3 {[%clk 0:00:29]} 39. a6 {[%clk 0:00:09]}  bxa6 {[%clk 0:00:28]} 40. Bxa6 {[%clk 0:00:10]}  Kg7 {[%clk 0:00:22]} 41. Bd3 {[%clk 0:00:10]}  Kf6 {[%clk 0:00:23]} 42. Bf2 {[%clk 0:00:10]}  Ke5 {[%clk 0:00:22]} 43. Bxh4 {[%clk 0:00:09]}  Kd4 {[%clk 0:00:22]} 44. Bc2 {[%clk 0:00:03]}  Kxc5 {[%clk 0:00:22]} 45. Be7+ {[%clk 0:00:03]}  Kc4 {[%clk 0:00:21]} 46. Kf3 {[%clk 0:00:03]}  c5 {[%clk 0:00:19]} 47. h4 {[%clk 0:00:03]}  Bh8 {[%clk 0:00:11]} 48. h5 {[%clk 0:00:02]}  d4 {[%clk 0:00:10]} 49. Ke2 {[%clk 0:00:02]}  Kc3 {[%clk 0:00:10]} 50. Be4 {[%clk 0:00:01]}  c4 {[%clk 0:00:11]} 51. h6 {[%clk 0:00:02]}  d3+ {[%clk 0:00:11]} 52. Ke3 {[%clk 0:00:01]}  Bd4+ {[%clk 0:00:08]} 53. Kf4 {[%clk 0:00:02]}  d2 {[%clk 0:00:08]} 54. Bf3 {[%clk 0:00:03]}  Bxa4 {[%clk 0:00:08]} 55. h7 {[%clk 0:00:03]}  Bh8 {[%clk 0:00:06]} 56. Kg5 {[%clk 0:00:03]}  Kd3 {[%clk 0:00:02]} 57. Bf6 {[%clk 0:00:04]}  Ke3 {[%clk 0:00:01]} 58. Bxh8 {[%clk 0:00:04]}  Kxf3 {[%clk 0:00:01]} 59. Bc3 {[%clk 0:00:04]}  d1=Q {[%clk 0:00:02]} 60. h8=Q {[%clk 0:00:04]}  Qc1+ {[%clk 0:00:02]} 61. Kh5 {[%clk 0:00:03]}  Qh1+ {[%clk 0:00:03]} 62. Kg5 {[%clk 0:00:03]}  Qc1+ {[%clk 0:00:02]} 63. Kh5 {[%clk 0:00:03]}  Qh1+ {[%clk 0:00:02]} 64. Kg5 {[%clk 0:00:03]}  Qxh8 {[%clk 0:00:02]} 65. Bxh8 {[%clk 0:00:04]}  Bc6 {[%clk 0:00:01]} 66. Kf6 {[%clk 0:00:04]}  Bd5 {[%clk 0:00:02]} 67. Ke5 {[%clk 0:00:04]}  Be4 {[%clk 0:00:02]} 68. Kf6 {[%clk 0:00:03]}  Bd5 {[%clk 0:00:02]} 69. Ke5 {[%clk 0:00:03]}  Be4 {[%clk 0:00:02]} 70. Kf6 {[%clk 0:00:04]}  Bd5 {[%clk 0:00:02]} 1/2-1/2


[Site "https://www.chess.com"]

[Event "Titled Tuesday Blitz June 13 Late 2023"]
[White "Anton Guijarro, David"]
[Black "Dardha, Daniel"]
[WhiteFideId "2285525"]
[BlackFideId "240990"]
[WhiteElo "2618"]
[BlackElo "2572"]
[Result "1-0"]
[Round "11"]
[TimeControl "180+2"]
[Date "2023.06.13"]
[WhiteClock "0:00:23"]
[BlackClock "0:00:00"]
[Board "2"]

1. Nf3 {[%clk 0:03:00]}  g6 {[%clk 0:02:57]} 2. e4 {[%clk 0:02:59]}  Bg7 {[%clk 0:02:56]} 3. d4 {[%clk 0:02:59]}  d6 {[%clk 0:02:56]} 4. c3 {[%clk 0:02:59]}  Nf6 {[%clk 0:02:57]} 5. Bd3 {[%clk 0:02:59]}  O-O {[%clk 0:02:56]} 6. O-O {[%clk 0:02:59]}  Nc6 {[%clk 0:02:57]} 7. d5 {[%clk 0:02:54]}  Nb8 {[%clk 0:02:57]} 8. c4 {[%clk 0:02:53]}  a5 {[%clk 0:02:55]} 9. Nc3 {[%clk 0:02:53]}  c6 {[%clk 0:02:51]} 10. Re1 {[%clk 0:02:51]}  Na6 {[%clk 0:02:47]} 11. h3 {[%clk 0:02:48]}  e5 {[%clk 0:02:43]} 12. a3 {[%clk 0:02:40]}  Nh5 {[%clk 0:02:42]} 13. b4 {[%clk 0:02:37]}  Nf4 {[%clk 0:02:28]} 14. Bf1 {[%clk 0:02:37]}  c5 {[%clk 0:01:56]} 15. bxc5 {[%clk 0:02:22]}  Nxc5 {[%clk 0:01:55]} 16. Be3 {[%clk 0:02:21]}  b6 {[%clk 0:01:52]} 17. Na4 {[%clk 0:01:58]}  Bd7 {[%clk 0:01:31]} 18. Nxc5 {[%clk 0:01:58]}  bxc5 {[%clk 0:01:32]} 19. Rb1 {[%clk 0:01:58]}  f5 {[%clk 0:01:13]} 20. Bxf4 {[%clk 0:01:57]}  exf4 {[%clk 0:01:14]} 21. e5 {[%clk 0:01:57]}  dxe5 {[%clk 0:01:08]} 22. Nxe5 {[%clk 0:01:58]}  Ra7 {[%clk 0:00:53]} 23. d6 {[%clk 0:01:47]}  Be8 {[%clk 0:00:15]} 24. Qd5+ {[%clk 0:01:41]}  Kh8 {[%clk 0:00:16]} 25. Qxc5 {[%clk 0:01:31]}  Ra6 {[%clk 0:00:10]} 26. Rbd1 {[%clk 0:01:23]}  Bd7 {[%clk 0:00:08]} 27. Nxd7 {[%clk 0:01:19]}  Qxd7 {[%clk 0:00:09]} 28. Re7 {[%clk 0:01:17]}  Qd8 {[%clk 0:00:09]} 29. Qd5 {[%clk 0:00:47]}  Bf6 {[%clk 0:00:08]} 30. c5 {[%clk 0:00:33]}  Bxe7 {[%clk 0:00:06]} 31. dxe7 {[%clk 0:00:32]}  Qxe7 {[%clk 0:00:05]} 32. Bxa6 {[%clk 0:00:32]}  f3 {[%clk 0:00:03]} 33. Qd4+ {[%clk 0:00:29]}  Qf6 {[%clk 0:00:02]} 34. c6 {[%clk 0:00:25]}  fxg2 {[%clk 0:00:00]} 35. c7 {[%clk 0:00:23]} 1-0


[Site "https://www.chess.com"]

[Event "Titled Tuesday Blitz June 13 Late 2023"]
[White "Nihal Sarin"]
[Black "Sviridov, Valery"]
[WhiteFideId "25092340"]
[BlackFideId "4120680"]
[WhiteElo "2689"]
[BlackElo "2457"]
[Result "1-0"]
[Round "11"]
[TimeControl "180+2"]
[Date "2023.06.13"]
[WhiteClock "0:00:04"]
[BlackClock "0:00:00"]
[Board "3"]

1. e4 {[%clk 0:03:00]}  e5 {[%clk 0:02:58]} 2. Nf3 {[%clk 0:03:00]}  Nc6 {[%clk 0:02:59]} 3. Bb5 {[%clk 0:03:00]}  Nge7 {[%clk 0:02:59]} 4. Nc3 {[%clk 0:02:51]}  g6 {[%clk 0:02:59]} 5. d4 {[%clk 0:02:46]}  exd4 {[%clk 0:03:00]} 6. Nd5 {[%clk 0:02:46]}  Bg7 {[%clk 0:02:52]} 7. Bg5 {[%clk 0:02:10]}  h6 {[%clk 0:02:52]} 8. Bf6 {[%clk 0:02:11]}  Bxf6 {[%clk 0:02:52]} 9. Nxf6+ {[%clk 0:02:12]}  Kf8 {[%clk 0:02:53]} 10. O-O {[%clk 0:02:12]}  Kg7 {[%clk 0:02:52]} 11. Nd5 {[%clk 0:02:13]}  d6 {[%clk 0:02:48]} 12. Bxc6 {[%clk 0:02:06]}  Nxc6 {[%clk 0:02:44]} 13. Nxd4 {[%clk 0:02:07]}  Re8 {[%clk 0:02:40]} 14. Re1 {[%clk 0:02:07]}  Be6 {[%clk 0:02:35]} 15. Nxc6 {[%clk 0:01:29]}  bxc6 {[%clk 0:02:36]} 16. Qd4+ {[%clk 0:01:30]}  f6 {[%clk 0:02:36]} 17. Nf4 {[%clk 0:01:31]}  Bf7 {[%clk 0:02:36]} 18. b3 {[%clk 0:01:29]}  c5 {[%clk 0:02:36]} 19. Qc3 {[%clk 0:01:30]}  a5 {[%clk 0:02:35]} 20. Rad1 {[%clk 0:01:23]}  Qe7 {[%clk 0:02:33]} 21. f3 {[%clk 0:01:23]}  a4 {[%clk 0:02:26]} 22. Nd3 {[%clk 0:01:23]}  axb3 {[%clk 0:02:26]} 23. axb3 {[%clk 0:01:24]}  g5 {[%clk 0:01:36]} 24. Ra1 {[%clk 0:01:16]}  Bg6 {[%clk 0:01:32]} 25. b4 {[%clk 0:01:13]}  cxb4 {[%clk 0:01:30]} 26. Nxb4 {[%clk 0:01:13]}  Bf7 {[%clk 0:01:27]} 27. Nc6 {[%clk 0:01:09]}  Qd7 {[%clk 0:01:27]} 28. Nd4 {[%clk 0:01:10]}  Bg6 {[%clk 0:01:26]} 29. Rxa8 {[%clk 0:00:50]}  Rxa8 {[%clk 0:01:26]} 30. Qxc7 {[%clk 0:00:51]}  Qxc7 {[%clk 0:01:24]} 31. Ne6+ {[%clk 0:00:51]}  Kg8 {[%clk 0:01:13]} 32. Nxc7 {[%clk 0:00:52]}  Rc8 {[%clk 0:01:13]} 33. Nd5 {[%clk 0:00:48]}  Rxc2 {[%clk 0:01:00]} 34. Nxf6+ {[%clk 0:00:49]}  Kg7 {[%clk 0:01:01]} 35. Ng4 {[%clk 0:00:44]}  Rd2 {[%clk 0:00:56]} 36. Ne3 {[%clk 0:00:42]}  h5 {[%clk 0:00:53]} 37. Rd1 {[%clk 0:00:24]}  Rxd1+ {[%clk 0:00:50]} 38. Nxd1 {[%clk 0:00:24]}  Kf6 {[%clk 0:00:25]} 39. Kf2 {[%clk 0:00:25]}  Bf7 {[%clk 0:00:22]} 40. Nc3 {[%clk 0:00:22]}  Ke5 {[%clk 0:00:22]} 41. Ke3 {[%clk 0:00:23]}  h4 {[%clk 0:00:18]} 42. Nd1 {[%clk 0:00:09]}  d5 {[%clk 0:00:14]} 43. Nf2 {[%clk 0:00:10]}  d4+ {[%clk 0:00:07]} 44. Kd3 {[%clk 0:00:10]}  Ba2 {[%clk 0:00:06]} 45. Nh3 {[%clk 0:00:03]}  Bb1+ {[%clk 0:00:04]} 46. Kd2 {[%clk 0:00:03]}  g4 {[%clk 0:00:04]} 47. fxg4 {[%clk 0:00:02]}  Bxe4 {[%clk 0:00:04]} 48. g3 {[%clk 0:00:02]}  hxg3 {[%clk 0:00:04]} 49. hxg3 {[%clk 0:00:03]}  Bf3 {[%clk 0:00:00]} 50. Nf2 {[%clk 0:00:04]} 1-0


[Site "https://www.chess.com"]

[Event "Titled Tuesday Blitz June 13 Late 2023"]
[White "Korobov, Anton"]
[Black "Bortnyk, Olexandr"]
[WhiteFideId "14105730"]
[BlackFideId "14120828"]
[WhiteElo "2638"]
[BlackElo "2733"]
[Result "0-1"]
[Round "11"]
[TimeControl "180+2"]
[Date "2023.06.13"]
[WhiteClock "0:00:08"]
[BlackClock "0:01:01"]
[Board "4"]

1. d4 {[%clk 0:03:00]}  d6 {[%clk 0:03:00]} 2. Nf3 {[%clk 0:03:00]}  Nf6 {[%clk 0:03:00]} 3. c4 {[%clk 0:03:00]}  g6 {[%clk 0:03:01]} 4. Nc3 {[%clk 0:03:00]}  Bg7 {[%clk 0:03:01]} 5. e4 {[%clk 0:03:00]}  O-O {[%clk 0:03:02]} 6. Be2 {[%clk 0:03:01]}  Nbd7 {[%clk 0:03:02]} 7. O-O {[%clk 0:02:57]}  e5 {[%clk 0:03:03]} 8. Be3 {[%clk 0:02:52]}  Qe7 {[%clk 0:03:03]} 9. Qc2 {[%clk 0:02:47]}  c6 {[%clk 0:03:04]} 10. d5 {[%clk 0:02:41]}  c5 {[%clk 0:03:04]} 11. Nd2 {[%clk 0:02:41]}  Ne8 {[%clk 0:03:04]} 12. Rab1 {[%clk 0:02:34]}  f5 {[%clk 0:03:04]} 13. exf5 {[%clk 0:02:26]}  gxf5 {[%clk 0:03:03]} 14. f4 {[%clk 0:02:27]}  e4 {[%clk 0:03:03]} 15. a3 {[%clk 0:02:19]}  Bd4 {[%clk 0:02:44]} 16. Nd1 {[%clk 0:02:14]}  Qg7 {[%clk 0:02:42]} 17. b4 {[%clk 0:02:08]}  a5 {[%clk 0:02:25]} 18. Nb3 {[%clk 0:01:53]}  axb4 {[%clk 0:02:24]} 19. axb4 {[%clk 0:01:51]}  b6 {[%clk 0:02:21]} 20. Qd2 {[%clk 0:01:46]}  Bf6 {[%clk 0:02:21]} 21. Bf2 {[%clk 0:01:39]}  Kh8 {[%clk 0:02:13]} 22. Re1 {[%clk 0:01:22]}  Ra4 {[%clk 0:02:03]} 23. bxc5 {[%clk 0:01:05]}  dxc5 {[%clk 0:02:02]} 24. d6 {[%clk 0:01:01]}  Bb7 {[%clk 0:01:38]} 25. Bf1 {[%clk 0:00:58]}  Bc6 {[%clk 0:01:35]} 26. Re3 {[%clk 0:00:54]}  Rb4 {[%clk 0:01:25]} 27. Rg3 {[%clk 0:00:50]}  Qf7 {[%clk 0:01:26]} 28. Ne3 {[%clk 0:00:51]}  Qe6 {[%clk 0:01:20]} 29. Nc2 {[%clk 0:00:37]}  Ra4 {[%clk 0:01:17]} 30. Rd1 {[%clk 0:00:37]}  Ra2 {[%clk 0:01:15]} 31. Be2 {[%clk 0:00:30]}  Ba4 {[%clk 0:01:15]} 32. h3 {[%clk 0:00:19]}  Qxd6 {[%clk 0:01:09]} 33. Qxd6 {[%clk 0:00:19]}  Nxd6 {[%clk 0:01:10]} 34. Rxd6 {[%clk 0:00:19]}  Rxc2 {[%clk 0:01:10]} 35. Bf1 {[%clk 0:00:19]}  Bh4 {[%clk 0:01:06]} 36. Nd2 {[%clk 0:00:14]}  Bxg3 {[%clk 0:01:02]} 37. Bxg3 {[%clk 0:00:08]}  Rf6 {[%clk 0:01:01]} 0-1


[Site "https://www.chess.com"]